bitfinex/quotes_SOLUSD_20250226
["timestamp","ask_amount","ask_price","bid_price","bid_amount"]
[1740565585009,0.06992184,140.8,140.79,83.04216157]
[1740565585209,0.06992184,140.8,140.79,101.833972]
[1740565585924,0.063,140.91,140.85,0.28432314]
[1740565586115,0.063,140.91,140.87,0.14216157]
[1740565586906,0.063,140.91,140.89,0.14216157]
[1740565587897,0.063,140.91,140.89,7.23966157]
[1740565588294,0.063,140.91,140.9,19.07613357]
[1740565588522,0.063,140.91,140.9,238.17613357]
[1740565589436,0.063,140.91,140.9,245.27333357]
[1740565590026,0.063,140.91,140.9,251.57783357]
[1740565592996,0.063,140.91,140.9,252.57783357]
[1740565593525,0.063,140.91,140.9,251.57783357]
[1740565594725,0.063,140.91,140.9,219.24216157]
[1740565595026,0.063,140.91,140.9,82.9]
[1740565595327,0.063,140.91,140.9,83.04216157]
[1740565597828,0.063,140.91,140.9,108.931172]
[1740565598005,0.063,140.91,140.9,245.41549514]
[1740565598640,0.063,140.91,140.9,245.27333357]
[1740565602632,0.063,140.91,140.9,238.033972]
[1740565602931,0.063,140.91,140.9,82.9]
[1740565603321,0.063,140.91,140.9,83.04216157]
[1740565603829,0.063,140.91,140.9,108.931172]
[1740565604132,0.063,140.91,140.9,109.07333357]
[1740565605113,0.063,140.91,140.9,245.41549514]
[1740565605437,0.063,140.91,140.9,246.41549514]
[1740565606832,0.063,140.91,140.9,290.19549514]
[1740565607542,0.063,140.91,140.9,289.19549514]
[1740565607742,0.063,140.91,140.9,288.19549514]
[1740565607945,0.063,140.91,140.9,245.27333357]
[1740565609021,0.063,140.91,140.9,287.69476003]
[1740565609212,0.063,140.91,140.9,288.69476003]
[1740565611730,0.0001,140.91,140.9,310.10476003]
[1740565611932,0.0001,140.92,140.91,85.40829514]
[1740565612142,0.0001,140.92,140.91,93.47959048]
[1740565614135,0.0001,140.92,140.91,100.57629048]
[1740565615037,0.0001,140.92,140.91,33.5155442]
[1740565615242,0.0001,140.92,140.91,243.52891375]
[1740565615541,0.0001,140.92,140.91,250.90993689]
[1740565616244,0.0001,140.92,140.91,251.05209846]
[1740565620244,0.0001,140.92,140.91,251.19426003]
[1740565620446,0.0001,140.92,140.91,294.97426003]
[1740565621638,0.0001,140.92,140.91,295.97426003]
[1740565624047,0.0001,140.92,140.91,317.38426003]
[1740565629258,0.0001,140.92,140.91,294.97426003]
[1740565629438,0.0001,140.92,140.91,252.19426003]
[1740565630157,0.0001,140.92,140.91,251.19426003]
[1740565630334,0.0001,140.92,140.91,244.48777532]
[1740565630532,0.0001,140.92,140.91,251.05209846]
[1740565630745,0.0001,140.92,140.91,250.76777532]
[1740565630958,0.0001,140.92,140.91,251.05209846]
[1740565631769,0.0001,140.92,140.91,224.87926489]
[1740565631979,0.0001,140.92,140.91,225.02142646]
[1740565632156,0.0001,140.92,140.91,218.59926489]
[1740565632552,0.0001,140.92,140.91,218.74142646]
[1740565633373,0.0001,140.92,140.91,82.54142646]
[1740565635667,0.0001,140.92,140.91,82.39926489]
[1740565636870,0.0001,140.92,140.87,88.67926489]
[1740565637052,0.0001,140.92,140.87,95.77776489]
[1740565637254,0.0001,140.92,140.91,0.03]
[1740565638354,17.7367,140.95,140.91,0.03]
[1740565638677,0.14216157,140.94,140.91,0.03]
[1740565638879,6.4189,140.93,140.91,0.03]
[1740565640180,7.0962,140.92,140.91,0.03]
[1740565641376,8.742,140.92,140.91,0.03]
[1740565643491,0.14216157,140.91,140.85,82.39926489]
[1740565643659,0.14216157,140.91,140.85,0.14216157]
[1740565643965,100.033972,140.91,140.84,6.28]
[1740565645175,24.8402,140.9,140.84,6.28]
[1740565645881,0.14216157,140.89,140.83,82.39926489]
[1740565646473,1.6559,140.88,140.83,82.39926489]
[1740565646681,1.6559,140.88,140.82,0.14216157]
[1740565646859,7.0987,140.87,140.82,0.14216157]
[1740565647465,7.0987,140.87,140.82,7.24326157]
[1740565648386,8.7543,140.88,140.82,7.24326157]
[1740565648764,8.7543,140.88,140.82,89.64252646]
[1740565662178,6.6558,140.87,140.82,82.39926489]
[1740565662381,0.14216157,140.86,140.81,0.03]
[1740565662587,20.0,140.84,140.81,0.03]
[1740565664401,7.1007,140.83,140.81,0.03]
[1740565667997,7.0997,140.85,140.81,0.03]
[1740565669106,10.70577952,140.86,140.81,0.03]
[1740565671995,3.60637952,140.86,140.81,0.17216157]
[1740565672194,7.0989,140.87,140.81,0.17216157]
[1740565672394,1.6559,140.88,140.82,0.28432314]
[1740565672606,17.10061435,140.9,140.84,0.14216157]
[1740565672789,17.10061435,140.9,140.84,82.54142646]
[1740565672987,3.52911435,140.9,140.84,82.54142646]
[1740565673703,3.52911435,140.9,140.85,7.0997]
[1740565673916,7.1599,140.91,140.85,7.0997]
[1740565674408,10.79884145,140.91,140.85,7.0997]
[1740565674782,0.063,140.91,140.86,7.38352314]
[1740565679417,0.063,140.91,140.86,8.94942314]
[1740565679615,0.063,140.91,140.88,0.28432314]
[1740565679922,0.063,140.91,140.9,0.14216157]
[1740565680291,0.063,140.91,140.9,101.47539846]
[1740565681618,0.063,140.91,140.9,108.57259846]
[1740565682123,0.063,140.91,140.9,82.54142646]
[1740565683403,0.063,140.91,140.9,89.78078803]
[1740565684105,0.063,140.91,140.9,108.71476003]
[1740565684615,0.063,140.91,140.9,108.23939334]
[1740565684945,0.063,140.91,140.9,115.82464686]
[1740565685228,0.0001,140.91,140.9,276.95424686]
[1740565685396,0.0001,140.91,140.9,275.46459334]
[1740565686508,0.0001,140.91,140.9,275.60675491]
[1740565687534,0.0001,140.91,140.9,318.38675491]
[1740565689028,0.063,140.95,140.94,19.21829514]
[1740565689337,0.063,140.95,140.94,243.76435491]
[1740565689630,0.063,140.95,140.94,250.85955491]
[1740565692822,0.063,140.95,140.94,231.92558291]
[1740565694126,0.063,140.95,140.94,250.85955491]
[1740565695847,0.063,140.95,140.94,251.85955491]
[1740565698333,0.063,140.95,140.94,273.26955491]
[1740565698633,0.063,140.95,140.94,251.85955491]
[1740565701261,0.0001,140.95,140.94,317.04955491]
[1740565701437,0.063,140.98,140.97,20.07613357]
[1740565701626,0.063,140.98,140.97,239.83101416]
[1740565701826,0.063,140.98,140.97,238.34219334]
[1740565702062,0.0001,140.98,140.97,303.67435491]
[1740565702260,0.063,141.0,140.99,21.21829514]
[1740565702261,0.0001,141.0,140.99,21.21829514]
[1740565702561,0.0001,141.0,140.99,25.49829514]
[1740565703158,0.0001,141.0,140.99,32.59099514]
[1740565704935,0.0001,141.0,140.99,75.37099514]
[1740565706929,0.0001,141.0,140.99,32.59099514]
[1740565707544,0.0001,141.0,140.99,250.85705491]
[1740565715069,0.0001,141.0,140.99,225.35875977]
[1740565715366,0.0001,141.0,140.99,82.06605977]
[1740565715560,0.0001,141.0,140.99,82.20822134]
[1740565715740,0.0001,141.0,140.99,82.06605977]
[1740565716238,0.0001,141.0,140.99,89.30092134]
[1740565716439,0.0001,141.0,140.99,108.23489334]
[1740565718865,0.0001,141.0,140.99,89.30092134]
[1740565720079,0.0001,141.0,140.99,89.44308291]
[1740565720371,0.0001,141.0,140.99,108.23489334]
[1740565720874,0.0001,141.0,140.99,108.37705491]
[1740565723670,0.0001,141.0,140.99,244.57705491]
[1740565727147,0.0001,141.0,140.99,310.76705491]
[1740565728681,0.063,141.06,141.05,19.07613357]
[1740565728870,0.063,141.06,141.05,243.60219334]
[1740565730869,0.063,141.06,141.05,250.69179334]
[1740565731482,0.0001,141.06,141.05,251.83395491]
[1740565731650,0.0001,141.06,141.05,317.02395491]
[1740565732455,0.0001,141.07,141.06,20.21829514]
[1740565732661,0.0001,141.07,141.06,28.79523494]
[1740565733464,0.0001,141.07,141.06,26.30739514]
[1740565733775,0.0001,141.07,141.06,26.16523357]
[1740565737303,0.0001,141.07,141.06,244.43129334]
[1740565738484,0.0001,141.07,141.06,244.57345491]
[1740565738691,0.0001,141.07,141.06,245.57345491]
[1740565740869,0.0001,141.07,141.06,310.69345491]
[1740565741274,0.0001,141.12,141.11,85.33829514]
[1740565741469,0.0001,141.12,141.11,311.35144864]
[1740565741673,0.0001,141.12,141.11,309.86435491]
[1740565742265,2.379e-05,141.13,141.12,85.33829514]
[1740565742489,2.379e-05,141.13,141.12,86.82534466]
[1740565742874,2.379e-05,141.15,141.14,28.30339514]
[1740565743076,2.379e-05,141.15,141.14,248.05638022]
[1740565743287,2.379e-05,141.15,141.14,246.56945491]
[1740565743691,2.379e-05,141.15,141.14,310.68945491]
[1740565748105,2.379e-05,141.15,141.14,314.25273092]
[1740565750211,2.379e-05,141.15,141.14,250.13273092]
[1740565750404,2.379e-05,141.15,141.14,244.56945491]
[1740565750704,2.379e-05,141.15,141.14,244.00080863]
[1740565750883,2.379e-05,141.15,141.14,244.56945491]
[1740565751079,2.379e-05,141.15,141.14,244.42729334]
[1740565751485,2.379e-05,141.15,141.14,244.56945491]
[1740565751899,2.379e-05,141.15,141.14,245.56945491]
[1740565753515,2.379e-05,141.15,141.14,266.90945491]
[1740565754005,2.379e-05,141.15,141.14,265.90945491]
[1740565754208,2.379e-05,141.15,141.14,266.90945491]
[1740565754513,2.379e-05,141.15,141.14,265.90945491]
[1740565754815,2.379e-05,141.15,141.14,266.90945491]
[1740565755118,2.379e-05,141.15,141.14,309.68945491]
[1740565755726,2.379e-05,141.15,141.14,308.68945491]
[1740565756214,2.379e-05,141.15,141.14,287.34945491]
[1740565756414,2.379e-05,141.15,141.14,244.1429702]
[1740565756585,2.379e-05,141.15,141.14,250.4029702]
[1740565756790,2.379e-05,141.15,141.14,250.68729334]
[1740565757013,2.379e-05,141.15,141.14,250.26080863]
[1740565757313,2.379e-05,141.15,141.14,250.4029702]
[1740565757688,2.379e-05,141.15,141.14,250.68729334]
[1740565757888,2.379e-05,141.15,141.14,293.45945491]
[1740565764922,2.379e-05,141.15,141.14,250.26080863]
[1740565765306,2.379e-05,141.15,141.14,231.75332134]
[1740565765822,2.379e-05,141.15,141.14,95.69548291]
[1740565766011,2.379e-05,141.15,141.14,95.41115977]
[1740565766213,2.379e-05,141.15,141.14,95.69548291]
[1740565767036,2.379e-05,141.15,141.14,95.55332134]
[1740565767824,2.379e-05,141.15,141.14,88.46822134]
[1740565768741,2.379e-05,141.15,141.13,82.12905977]
[1740565770338,2.379e-05,141.15,141.13,0.063]
[1740565770907,1.5066,141.14,141.13,0.063]
[1740565772228,8.5917,141.14,141.13,0.063]
[1740565773018,14.8361,141.14,141.07,82.06605977]
[1740565773235,14.8361,141.14,141.07,88.32605977]
[1740565773444,32.549,141.14,141.07,88.32605977]
[1740565774341,32.549,141.14,141.07,95.41465977]
[1740565774843,32.549,141.14,141.07,88.32605977]
[1740565775139,32.549,141.14,141.07,82.06605977]
[1740565775910,20.0,141.11,141.07,82.06605977]
[1740565776407,27.087,141.11,141.07,82.06605977]
[1740565779343,1.588,141.1,141.06,0.063]
[1740565779521,6.0813,141.09,141.06,0.063]
[1740565781547,7.0881,141.08,141.06,0.063]
[1740565782152,1.588,141.07,141.06,0.063]
[1740565786761,21.588,141.07,141.06,0.063]
[1740565787054,28.6766,141.07,141.06,0.063]
[1740565790456,28.81876157,141.07,141.06,0.063]
[1740565790656,0.14216157,141.05,141.0,82.06605977]
[1740565790861,0.14216157,141.05,140.99,0.03]
[1740565792058,7.0901,141.04,140.99,0.03]
[1740565794867,3.47577056,141.03,140.99,0.03]
[1740565795464,7.0901,141.04,140.99,0.17216157]
[1740565795673,88.1893,141.06,140.99,0.17216157]
[1740565796253,88.1893,141.06,140.99,7.26436157]
[1740565796558,7.0893,141.06,140.99,89.33042134]
[1740565797668,7.0893,141.06,140.99,82.23822134]
[1740565797844,20.0,141.03,140.99,82.09605977]
[1740565799060,27.0906,141.04,140.99,82.09605977]
[1740565799265,20.0,141.04,141.0,0.14216157]
[1740565799642,20.0,141.04,140.99,82.09605977]
[1740565800664,7.0906,141.03,140.99,82.09605977]
[1740565802569,7.0906,141.03,140.99,0.03]
[1740565802873,27.0906,141.03,140.99,0.03]
[1740565804371,27.0906,141.03,140.99,0.17216157]
[1740565804570,98.8239,141.06,140.99,7.26476157]
[1740565804571,7.0896,141.05,140.99,7.26476157]
[1740565804748,81.1,141.06,140.99,7.26476157]
[1740565804749,7.0893,141.06,141.0,0.14216157]
[1740565804949,8.6769,141.07,141.01,0.14216157]
[1740565805148,8.6769,141.07,141.0,82.06605977]
[1740565805349,26.3985,141.07,141.0,82.06605977]
[1740565805550,18.933972,141.06,141.0,82.06605977]
[1740565805773,21.6097,141.02,140.99,0.03]
[1740565806077,20.0,141.01,140.99,0.03]
[1740565806445,7.0921,141.0,140.99,0.03]
[1740565806652,88.47642314,141.0,140.99,0.03]
[1740565806874,1.28432314,140.99,140.98,0.033]
[1740565807177,1.28432314,140.99,140.92,0.063]
[1740565807178,20.0,140.95,140.92,0.063]
[1740565808052,20.0,140.94,140.92,0.063]
[1740565808265,1.80766157,140.93,140.92,0.063]
[1740565808468,28.90336157,140.93,140.92,0.063]
[1740565810087,28.90336157,140.93,140.91,0.03]
[1740565812102,83.641,140.97,140.91,0.03]
[1740565812263,82.641,140.97,140.91,0.03]
[1740565812468,3.50696983,140.95,140.91,0.03]
[1740565812697,1.541,140.97,140.91,0.17216157]
[1740565812876,81.1,140.99,140.91,0.17216157]
[1740565813193,7.0921,141.0,140.92,7.38002314]
[1740565813370,7.0921,141.0,140.92,82.35038291]
[1740565813568,7.0921,141.0,140.92,89.44648291]
[1740565813791,7.0921,141.0,140.92,82.35038291]
[1740565814093,20.0,140.97,140.92,82.20822134]
[1740565814577,88.1921,141.0,140.92,82.20822134]
[1740565814893,0.14216157,140.99,140.92,82.20822134]
[1740565815390,0.14216157,141.0,140.92,82.20822134]
[1740565815590,3.53722074,141.01,140.92,89.30422134]
[1740565815896,10.62902074,141.01,140.92,89.30422134]
[1740565816692,18.933972,141.0,140.92,82.20822134]
[1740565816902,20.933972,141.0,140.92,82.20822134]
[1740565817574,0.14216157,140.98,140.91,0.17216157]
[1740565818464,20.0,140.96,140.91,0.03]
[1740565818676,2.14216157,140.98,140.91,0.03]
[1740565818677,83.24216157,140.98,140.91,0.03]
[1740565818980,0.14216157,140.96,140.91,0.03]
[1740565819200,20.0,140.94,140.91,0.03]
[1740565819524,7.0957,140.93,140.91,0.03]
[1740565820771,20.0,140.92,140.91,0.03]
[1740565821897,27.0962,140.92,140.91,0.03]
[1740565827702,29.38052314,140.92,140.91,0.0001]
[1740565827885,48.030172,140.92,140.91,0.0001]
[1740565828199,129.130172,140.92,140.91,0.0001]
[1740565828511,20.0,140.88,140.84,0.03]
[1740565828802,20.0,140.89,140.84,0.03]
[1740565829000,20.0,140.88,140.84,0.03]
[1740565829784,20.0,140.85,140.84,0.03]
[1740565832980,27.0997,140.85,140.84,0.03]
[1740565834906,27.24186157,140.85,140.84,0.03]
[1740565835405,128.133672,140.85,140.84,0.03]
[1740565835588,129.133672,140.85,140.84,0.03]
[1740565836907,129.27583357,140.85,140.81,0.03]
[1740565837094,20.0,140.82,140.81,0.03]
[1740565837796,47.035172,140.82,140.81,0.03]
[1740565838312,47.17733357,140.82,140.81,0.03]
[1740565838491,47.035172,140.82,140.81,0.03]
[1740565840209,27.24336157,140.82,140.81,0.03]
[1740565841294,27.1012,140.82,140.81,0.03]
[1740565842813,30.67874292,140.82,140.81,0.03]
[1740565843308,31.82090449,140.82,140.81,0.03]
[1740565843515,51.61271492,140.82,140.81,0.03]
[1740565843818,51.75487649,140.82,140.81,0.03]
[1740565844706,50.61271492,140.82,140.81,0.03]
[1740565844908,51.61271492,140.82,140.81,0.03]
[1740565846119,50.61271492,140.82,140.81,0.03]
[1740565846314,10.67874292,140.82,140.81,0.03]
[1740565847515,1.6067,140.86,140.81,0.03]
[1740565847701,7.0997,140.85,140.81,0.03]
[1740565848716,20.0,140.82,140.81,0.03]
[1740565849110,30.61275912,140.84,140.81,0.03]
[1740565849309,23.51245912,140.84,140.81,0.03]
[1740565849530,20.0,140.82,140.81,0.03]
[1740565850222,30.61265912,140.84,140.81,0.03]
[1740565851618,23.51245912,140.84,140.81,0.03]
[1740565851798,30.61265912,140.84,140.81,0.03]
[1740565851997,20.0,140.82,140.81,0.03]
[1740565852407,0.063,140.84,140.81,0.03]
[1740565852910,20.063,140.84,140.81,0.03]
[1740565853524,27.1633,140.84,140.81,0.03]
[1740565855829,20.063,140.84,140.81,0.03]
[1740565856528,27.1633,140.84,140.81,0.03]
[1740565856919,20.0,140.83,140.81,0.03]
[1740565858138,0.063,140.84,140.81,82.23822134]
[1740565859240,0.063,140.84,140.83,6.54372314]
[1740565859424,0.063,140.84,140.83,12.82372314]
[1740565859732,0.063,140.84,140.83,19.92442314]
[1740565860319,0.063,140.84,140.83,12.68156157]
[1740565860540,0.063,140.84,140.83,12.5394]
[1740565860716,0.063,140.84,140.83,6.28]
[1740565860923,20.063,140.84,140.81,0.03]
[1740565861840,7.1007,140.83,140.81,0.03]
[1740565862933,7.1007,140.83,140.8,0.03]
[1740565862934,0.28432314,140.81,140.8,0.03]
[1740565863547,19.933972,140.81,140.8,0.0001]
[1740565863756,21.07613357,140.81,140.8,0.0001]
[1740565864250,28.17783357,140.81,140.8,0.0001]
[1740565865417,28.17783357,140.81,140.78,0.0001]
[1740565865418,20.933972,140.79,140.78,0.0001]
[1740565865814,40.933972,140.79,140.78,0.0001]
[1740565866009,42.594472,140.79,140.78,0.0001]
[1740565866213,29.697172,140.79,140.78,0.0001]
[1740565867640,27.24486157,140.79,140.78,0.0001]
[1740565867846,7.38702314,140.79,140.78,0.0001]
[1740565868026,27.036672,140.79,140.78,0.0001]
[1740565869121,28.17883357,140.79,140.78,0.0001]
[1740565872070,7.1027,140.79,140.78,0.0001]
[1740565872439,7.24486157,140.79,140.78,0.0001]
[1740565872949,7.1027,140.79,140.78,0.0001]
[1740565873845,7.1017,140.81,140.78,0.0001]
[1740565874520,20.0,140.8,140.78,0.0001]
[1740565874948,138.943,140.84,140.78,0.0001]
[1740565874949,219.043,140.84,140.78,0.0001]
[1740565875166,7.1007,140.83,140.78,0.0001]
[1740565875321,7.1634,140.84,140.79,0.14216157]
[1740565875935,0.063,140.84,140.79,82.35038291]
[1740565876161,0.063,140.84,140.81,0.14216157]
[1740565876662,0.063,140.84,140.81,82.20822134]
[1740565877448,20.063,140.84,140.81,82.20822134]
[1740565877651,20.063,140.84,140.81,89.30992134]
[1740565877844,20.063,140.84,140.81,82.20822134]
[1740565878264,0.063,140.84,140.81,82.06605977]
[1740565879765,0.063,140.84,140.8,0.14216157]
[1740565885766,0.063,140.84,140.8,7.24436157]
[1740565887165,0.063,140.84,140.83,6.5776]
[1740565887343,0.063,140.84,140.83,12.8576]
[1740565887853,0.063,140.84,140.83,113.99979334]
[1740565888969,0.063,140.84,140.83,121.10049334]
[1740565889172,0.063,140.84,140.83,95.06582134]
[1740565889351,0.063,140.84,140.83,82.06605977]
[1740565891669,0.063,140.84,140.82,14.9259]
[1740565891964,0.063,140.84,140.82,7.8247]
[1740565892280,0.063,140.84,140.82,6.28]
[1740565896481,0.063,140.84,140.83,1.0]
[1740565908265,0.063,140.84,140.83,90.30892134]
[1740565908587,0.063,140.84,140.83,83.06605977]
[1740565912491,0.063,140.84,140.83,1.0]
[1740565913688,0.063,140.84,140.83,8.24286157]
[1740565914389,0.063,140.84,140.83,90.45108291]
[1740565914575,0.063,140.84,140.83,109.24289334]
[1740565917122,0.063,140.84,140.83,109.38505491]
[1740565917265,0.0001,140.84,140.83,254.88208594]
[1740565917466,0.0001,140.84,140.83,253.39165491]
[1740565918596,0.0001,140.84,140.83,253.24949334]
[1740565918796,0.0001,140.84,140.83,97.97335977]
[1740565919091,0.0001,140.84,140.83,97.29482134]
[1740565920073,0.0001,140.84,140.83,97.15265977]
[1740565920287,0.0001,140.84,140.83,89.34605977]
[1740565920468,0.0001,140.84,140.83,89.48822134]
[1740565922686,0.0001,140.84,140.83,1.0]
[1740565926490,0.0001,140.84,140.83,1.14216157]
[1740565926671,0.0001,140.84,140.83,96.71108291]
[1740565926875,0.0001,140.84,140.83,251.70289334]
[1740565928000,0.0001,140.84,140.83,232.91108291]
[1740565928878,0.0001,140.84,140.83,251.70289334]
[1740565929997,0.0001,140.84,140.83,251.84505491]
[1740565932281,0.0001,140.84,140.83,251.87505491]
[1740565932801,0.063,140.9,140.87,19.07613357]
[1740565932981,0.063,140.9,140.88,6.26]
[1740565933501,0.063,140.9,140.89,19.21829514]
[1740565933689,0.063,140.9,140.89,25.33379514]
[1740565934082,0.063,140.9,140.89,243.59985491]
[1740565934293,55.96282593,140.99,140.9,0.14216157]
[1740565934615,54.45122593,140.99,140.95,18.933972]
[1740565934910,54.45122593,140.99,140.95,243.46003177]
[1740565935110,0.063,140.99,140.95,243.46003177]
[1740565935473,0.063,140.99,140.96,0.14216157]
[1740565936287,0.063,140.99,140.97,0.14216157]
[1740565938986,0.063,140.99,140.96,82.06605977]
[1740565941315,0.063,140.99,140.96,82.35038291]
[1740565942495,0.063,140.99,140.96,89.44438291]
[1740565942916,0.063,140.99,140.98,0.56864628]
[1740565943128,0.063,140.99,140.98,218.83470605]
[1740565943823,0.063,140.99,140.98,225.78574448]
[1740565944123,0.063,140.99,140.98,225.50142134]
[1740565945119,0.063,140.99,140.98,89.30142134]
[1740565945424,0.063,140.99,140.98,89.44358291]
[1740565946594,0.063,140.99,140.98,108.23539334]
[1740565950950,0.063,140.99,140.98,244.43539334]
[1740565954443,0.063,140.99,140.98,244.43539334]
[1740565961316,0.0001,141.01,141.0,0.28432314]
[1740565961515,0.0001,141.01,141.0,6.54432314]
[1740565961822,0.0001,141.01,141.0,45.47829514]
[1740565962247,0.0001,141.01,141.0,307.37435491]
[1740565962442,0.0001,141.01,141.0,328.71435491]
[1740565963241,0.0001,141.01,141.0,335.80645491]
[1740565964716,0.0001,141.01,141.0,256.91570863]
[1740565964925,0.0001,141.01,141.0,88.32605977]
[1740565965242,0.0001,141.01,141.0,88.46822134]
[1740565971134,0.0001,141.01,141.0,95.56032134]
[1740565971944,0.0001,141.01,141.0,114.49429334]
[1740565973349,0.0001,141.01,141.0,88.46822134]
[1740565973651,0.0001,141.01,141.0,95.56032134]
[1740565974018,0.0001,141.01,141.0,88.46822134]
[1740565974943,0.0001,141.01,141.0,95.56032134]
[1740565976348,0.0001,141.01,141.0,95.70248291]
[1740565976644,0.0001,141.01,141.0,114.49429334]
[1740565977738,0.0001,141.01,141.0,250.69429334]
[1740565980263,0.0001,141.01,141.0,224.52605977]
[1740565980545,0.0001,141.01,141.0,224.66822134]
[1740565980746,0.0001,141.01,141.0,224.69822134]
[1740565983677,0.0001,141.01,141.0,88.49822134]
[1740565984564,0.0001,141.06,141.05,85.18829514]
[1740565984767,0.03,141.13,141.1,0.28432314]
[1740565984942,0.03,141.13,141.1,6.64432314]
[1740565985742,0.03,141.13,141.12,0.14216157]
[1740565986767,0.03,141.13,141.12,7.37042314]
[1740565987271,0.063,141.14,141.13,0.42648471]
[1740565987457,0.063,141.14,141.13,218.69254448]
[1740565988272,0.063,141.14,141.13,218.55038291]
[1740565988683,0.063,141.14,141.13,223.52912097]
[1740565988856,0.063,141.14,141.13,230.61472097]
[1740565989577,0.063,141.14,141.13,94.41472097]
[1740565990076,0.063,141.14,141.13,249.4065314]
[1740565990657,0.063,141.14,141.13,292.17869297]
[1740565992471,1.17672379,141.21,141.14,0.14216157]
[1740565992674,1.17672379,141.21,141.16,0.14216157]
[1740565992875,139.4391,141.26,141.17,0.14216157]
[1740565993071,132.36,141.26,141.17,82.20822134]
[1740565993273,1.0,141.25,141.17,82.20822134]
[1740565993469,81.1,141.27,141.18,0.14216157]
[1740565993779,81.1,141.27,141.17,218.40822134]
[1740565993780,8.22206157,141.25,141.17,218.40822134]
[1740565994473,13.3281,141.24,141.17,218.40822134]
[1740565994779,6.2479,141.24,141.17,218.40822134]
[1740565994989,6.2479,141.24,141.17,225.49172134]
[1740565995590,7.7612,141.24,141.17,225.49172134]
[1740565996081,14.8415,141.24,141.17,82.20822134]
[1740565996487,7.7612,141.24,141.17,82.20822134]
[1740565996785,7.7612,141.24,141.17,89.29152134]
[1740565997187,7.7612,141.24,141.17,82.20822134]
[1740565997392,14.8413,141.24,141.17,82.20822134]
[1740565999183,14.8413,141.24,141.17,89.29182134]
[1740565999706,14.8413,141.24,141.17,82.20822134]
[1740566001100,7.7612,141.24,141.17,89.29162134]
[1740566001401,1.5133,141.24,141.18,0.14216157]
[1740566001575,7.0795,141.26,141.18,0.14216157]
[1740566002092,81.1,141.27,141.19,0.14216157]
[1740566002093,88.1788,141.27,141.19,0.14216157]
[1740566002292,7.0788,141.27,141.21,0.14216157]
[1740566003996,8.686,141.28,141.21,89.43198291]
[1740566004199,0.03,141.24,141.21,89.43198291]
[1740566004895,0.03,141.24,141.23,0.42648471]
[1740566005077,0.03,141.24,141.23,26.15673357]
[1740566005276,0.03,141.24,141.23,244.42279334]
[1740566008394,0.03,141.24,141.23,218.26605977]
[1740566008577,0.03,141.24,141.23,225.34665977]
[1740566008784,0.03,141.24,141.23,225.63098291]
[1740566010185,0.03,141.24,141.23,108.22279334]
[1740566010378,0.03,141.24,141.23,244.42279334]
[1740566010874,0.03,141.24,141.23,225.63098291]
[1740566014812,0.03,141.24,141.2,82.06605977]
[1740566014992,0.03,141.24,141.21,0.14216157]
[1740566015883,0.03,141.24,141.2,82.06605977]
[1740566016202,0.03,141.24,141.21,0.14216157]
[1740566017087,0.03,141.24,141.19,82.12905977]
[1740566018305,0.14216157,141.22,141.19,0.063]
[1740566018682,7.0816,141.21,141.19,0.063]
[1740566019103,0.14216157,141.2,141.19,0.063]
[1740566019989,88.32376157,141.21,141.19,0.063]
[1740566021007,87.32376157,141.21,141.19,0.063]
[1740566021606,6.22376157,141.21,141.19,0.063]
[1740566022110,17.7031,141.22,141.19,0.063]
[1740566022298,24.7842,141.22,141.19,0.063]
[1740566023805,25.7842,141.22,141.19,0.063]
[1740566024413,24.7842,141.22,141.19,0.063]
[1740566026612,7.0811,141.22,141.19,0.063]
[1740566027706,7.0806,141.23,141.19,0.063]
[1740566031219,0.28432314,141.22,141.19,0.063]
[1740566031418,1.28432314,141.22,141.19,0.063]
[1740566032009,18.933972,141.22,141.19,0.063]